Cogmind - Beta 16 @@@ ROGUE MODE // 2026.01.24 @ 18:14:57 Player: katharsis Result: Destroyed by Y-45 Defender with Heavy Assault Rifle Performance ------------- Evolutions (1) 500 Regions Visited (3) 600 Robots Destroyed (15) 75 Value Destroyed (424) 424 Prototype IDs (0) 0 Alien Tech Used (0) 0 Bonus (54) 54 TOTAL SCORE: 1653 Bonus ------- Follower Combat Kills 85 Friendly Fire -31 Cogmind --------- Core Integrity 0/400 Matter 300/300 Energy 99/100 System Corruption 0% Temperature Cool (9) Movement Core (250) Ox4 Location -9/Materials Parts ------- > --- POWER (2) -------- (None) > --- PROPULSION (2) --- (None) > --- UTILITY (3) ------ Small Storage Unit System Shield > --- WEAPON (2) ------- Great Maul Great Maul > --- INVENTORY (8) ---- Mining Laser Peak State ------------ > --- POWER ------------ (None) > --- PROPULSION ------- (None) > --- UTILITY ---------- Improved Heat Sink Small Storage Unit System Shield > --- WEAPON ----------- Great Maul Great Maul > --- INVENTORY -------- Mining Laser [Rating: 13] Favorites ----------- Power Light Ion Engine Engine Light Ion Engine Propulsion Light Treads Treads Light Treads Wheel Compact Wheel Utility Small Storage Unit Device Improved Heat Sink Storage Small Storage Unit Hackware System Shield Weapon Light Assault Rifle Energy Gun EM Pulse Gun Ballistic Gun Light Assault Rifle Launcher Grenade Launcher Impact Weapon Great Maul Build | -11 -10 -10 -9 ------- Run | Yrd Mat Min Mat Slots Evolved 2 | . . . 2 Power 1 | . . . 1 Propulsion . | . . . . Utility 1 | . . . 1 Weapon . | . . . . Parts Attached 14 | 8 2 1 3 Power 1 | 1 . . . Engine 1 | 1 . . . Core . | . . . . Reactor . | . . . . Propulsion 4 | 4 . . . Treads 2 | 2 . . . Leg . | . . . . Wheel 2 | 2 . . . Hover . | . . . . Flight . | . . . . Utility 3 | 1 . 1 1 Device 1 | . . 1 . Storage 1 | 1 . . . Processor . | . . . . Hackware 1 | . . . 1 Protection . | . . . . Artifact . | . . . . Weapon 6 | 2 2 . 2 Energy Gun 1 | 1 . . . Energy Cannon . | . . . . Ballistic Gun 2 | 1 1 . . Ballistic Cannon . | . . . . Launcher 1 | . 1 . . Special Weapon . | . . . . Impact Weapon 2 | . . . 2 Slashing Weapon . | . . . . Piercing Weapon . | . . . . Special Melee Weapon . | . . . . Unidentified Prototypes . | . . . . Parts Lost 8 | . 2 . 6 Power 1 | . . . 1 Propulsion 2 | . . . 2 Utility 1 | . . . 1 Weapon 4 | . 2 . 2 Highest Loss Streak 6 | . 2 . 6 To Critical Strikes . | . . . . Average Backups . | . . . 1 Power . | . . . . Propulsion . | . . . . Utility . | . . . . Weapon . | . . . 1 Tool/Special . | . . . . Unused Backups 1 | . . . 1 Power . | . . . . Propulsion . | . . . . Utility . | . . . . Weapon 1 | . . . 1 Tool/Special . | . . . . Average Slot Usage (%) 79 | . 84 86 69 Engine 12 | . 14 14 8 Treads 24 | . 28 28 17 Device 4 | . . 1 10 Storage 12 | . 14 14 11 Energy Gun 3 | . 7 . . Ballistic Gun 12 | . 13 14 10 Launcher 8 | . 6 14 8 Peak Build Rating 13 | 6 6 9 13 Average Rating 6 | 5 5 6 8 On Entrance 5 | . 6 6 9 Avg Prop Armor Cover (%) 22 | 22 22 22 21 Naked Turns . | . . . . Heaviest Build 14 | 11 12 13 14 Greatest Support 40 | 40 3 3 40 Greatest Overweight (x) 4 | 3 3 4 4 Average Overweight (x) 2 | 2 3 3 2 Largest Inventory Capacity 8 | 8 8 8 8 Average Capacity 7 | 7 8 8 8 Most Carried 2 | 2 1 1 1 Average Carried . | . . . 1 Final Capacity 8 | 8 8 8 8 Final Carried 1 | . . 1 1 Class Distribution -------------------- 100% | Mutant Dominant Class ---------------- Mutant | -10/Materials Mutant | -10/Mines Mutant | -9/Materials Resources | -11 -10 -10 -9 ----------- Run | Yrd Mat Min Mat Matter Collected 424 | 250 124 21 29 Remotely . | . . . . Salvage Created 391 | . 221 . 170 Parts 21 | . 15 . 6 Haulers Intercepted 1 | . 1 . . Recyclers Shooed . | . . . . Parts Field Recycled . | . . . . Retrieved Matter . | . . . . Parts Self-Destructed . | . . . . Prevented . | . . . . Parts Restored . | . . . . Kills | -11 -10 -10 -9 ------- Run | Yrd Mat Min Mat Combat Hostiles Destroyed 11 | . 7 . 4 Guns 3 | . 2 . 1 AOE 6 | . 5 . 1 Classes Destroyed 7 | . 6 . 1 Builder 1 | . 1 . . Hauler 1 | . 1 . . Operator 1 | . 1 . . Watcher 1 | . 1 . . Swarmer 4 | . 4 . . Grunt 6 | . 3 . 3 Sentry 1 | . . . 1 Best Kill Streak 4 | . 4 . 2 Combat Bots Only 4 | . 4 . 2 Max Kills in Single Turn 3 | . 3 . 1 Gunslinging . | . . . . Exploded 3 | . 3 . 1 Melee . | . . . . Uniques/NPCs Destroyed . | . . . . Combat | -11 -10 -10 -9 -------- Run | Yrd Mat Min Mat Hostile Shots Fired 138 | . 38 1 99 Missed 40 | . 7 . 33 Hits 98 | . 31 1 66 Projectile 98 | . 31 1 66 Critical Strikes 1 | . . . 1 Damage Taken 1426 | . 463 54 909 Core 518 | . 74 38 406 Absorbed by Shields . | . . . . Core Remaining (%) 77 | 100 . 55 . Volleys Fired 22 | . 12 1 9 Largest 2 | . 2 2 2 Hottest 60 | . 60 50 50 Shots Fired 35 | . 22 2 11 Gun 25 | . 15 1 9 Cannon . | . . . . Launcher 10 | . 7 1 2 Special . | . . . . Kinetic 20 | . 10 1 9 Thermal . | . . . . Explosive 10 | . 7 1 2 Electromagnetic 5 | . 5 . . Robot Hit Streak 5 | . 5 . 4 Robot Miss Streak 2 | . 2 . 1 Penetration Max . | . . . . Secondary Targets . | . . . . Shots Hit Robots 21 | . 13 . 8 Core Hits 26 | . 16 2 8 Critical Kills . | . . . . Critical Parts Destroyed 2 | . . . 2 Critical Strikes 2 | . . . 2 Smash 2 | . . . 2 Melee Attacks 2 | . . . 2 Impact 2 | . . . 2 Slashing . | . . . . Piercing . | . . . . Sneak Attacks . | . . . . Combat Hostiles . | . . . . Follow-up Attacks . | . . . . Damage Inflicted 1054 | . 787 62 205 Guns 131 | . 102 . 29 Cannons . | . . . . Explosions 857 | . 685 62 110 Melee 66 | . . . 66 Ramming . | . . . . Kinetic 64 | . 35 . 29 Thermal 88 | . 88 . . Explosive 769 | . 597 62 110 Electromagnetic 67 | . 67 . . Impact 66 | . . . 66 Slashing . | . . . . Piercing . | . . . . Highest Corruption . | . . . . Average Corruption . | . . . . Corruption Purged . | . . . . Corruption Blocked . | . . . . Overload Shots . | . . . . Overflow Damage 170 | . 104 . 66 Projectiles . | . . . . Explosions 104 | . 104 . . Melee 66 | . . . 66 Knockbacks 1 | . . . 1 Impact 1 | . . . 1 Kinetic . | . . . . Secondary . | . . . . Self-Inflicted Damage 191 | . 152 39 . Shots 6 | . 5 1 . Rammed . | . . . . Targets Rammed . | . . . . Kicked . | . . . . Crushed . | . . . . Highest Temperature 56 | . 56 10 2 Average Temperature 19 | . 21 7 2 Received Heat Transfer 540 | . 87 9 444 Siege Activations . | . . . . Martial Activations . | . . . . Shielding Activations . | . . . . Robots Disrupted . | . . . . Combat Hostiles . | . . . . Robots Corrupted 2 | . . . 2 Combat Hostiles 2 | . . . 2 Parts Fried 3 | . . . 3 Impact Corruptions 3 | . . . 3 Robots Melted . | . . . . Combat Hostiles . | . . . . Parts Melted . | . . . . Heat Transferred 50 | . 50 . . Parts Sabotaged . | . . . . Parts Stolen . | . . . . Parts Stripped . | . . . . Power Chain Reactions . | . . . . Alert | -11 -10 -10 -9 ------- Run | Yrd Mat Min Mat Maximum Alert Level 1 | . 1 . . Low Security (%) 92 | 100 80 100 100 Level 1 7 | . 19 . . Level 2 . | . . . . Level 3 . | . . . . Level 4 . | . . . . Level 5 . | . . . . High Security . | . . . . Max Security . | . . . . Peak Influence 263 | . 263 189 80 Initial 90 | . . 90 69 Average 55 | . 92 91 44 Influence Increases 636 | . 343 129 164 Destroy 0b10 Robot/C 280 | . 140 40 100 Destroy 0b10 Robot/NC 25 | . 20 5 . Destroy Leader 74 | . 34 10 30 Allied During Kill 6 | . . 3 3 Disable Machine 105 | . 60 45 . Destroy Structure 101 | . 59 26 16 Lose Combat Pursuer 45 | . 30 . 15 Influence Decreases 586 | . 110 183 293 Entered New Map 253 | . . 143 110 Time Decay 240 | . 90 40 110 Lost Part 73 | . 20 . 53 Lost Ally 20 | . . . 20 Squads Dispatched 2 | . 1 . 1 Investigation . | . . . . Extermination . | . . . . Reinforcement 2 | . 1 . 1 Assault . | . . . . Garrison . | . . . . Intercept . | . . . . Searches Triggered . | . . . . Construction Impeded . | . . . . Haulers Reinforced . | . . . . Active Scanning Responses . | . . . . Cargo Convoy Interrupts . | . . . . Stealth | -11 -10 -10 -9 --------- Run | Yrd Mat Min Mat Distress Signals 2 | . 2 . . Communications Jammed . | . . . . Distress Signals . | . . . . Times Spotted 26 | . 14 2 10 Peak Tracking Total 8 | . 8 2 7 Tactical Retreats 3 | . 2 . 1 Traps | -11 -10 -10 -9 ------- Run | Yrd Mat Min Mat Traps Triggered . | . . . . Indirectly . | . . . . Trap Hack Attempts . | . . . . Triggered . | . . . . Disarmed . | . . . . Reprogrammed . | . . . . Reused . | . . . . Traps Extracted . | . . . . Installed . | . . . . Triggered . | . . . . Machines | -11 -10 -10 -9 ---------- Run | Yrd Mat Min Mat Machines Disabled 7 | . 4 3 . Max in Single Turn 3 | . 3 . . Machines Repaired . | . . . . Machines Dismantled . | . . . . Machines Sabotaged . | . . . . Overloaded Fab Kills . | . . . . Hacking | -11 -10 -10 -9 --------- Run | Yrd Mat Min Mat Machines Accessed . | . . . . Terminals . | . . . . Fabricators . | . . . . Repair Stations . | . . . . Recycling Units . | . . . . Scanalyzers . | . . . . Garrison Access . | . . . . Total Hacks . | . . . . Successful . | . . . . Failed . | . . . . Catastrophic . | . . . . Database Lockouts . | . . . . Manual . | . . . . Terminals . | . . . . Fabricators . | . . . . Repair Stations . | . . . . Recycling Units . | . . . . Scanalyzers . | . . . . Garrison Access . | . . . . Terminal Hacks . | . . . . Fabricator Hacks . | . . . . Repair Station Hacks . | . . . . Recycling Unit Hacks . | . . . . Scanalyzer . | . . . . Garrison Access Hacks . | . . . . Unauthorized Hacks . | . . . . Terminals . | . . . . Fabricators . | . . . . Repair Stations . | . . . . Recycling Units . | . . . . Scanalyzers . | . . . . Garrison Access . | . . . . Data Cores Recovered . | . . . . Used . | . . . . Hacking Detections . | . . . . Full Trace Events . | . . . . Feedback Events . | . . . . Feedback Blocked . | . . . . Robot Schematics Acquired . | . . . . Robots Built . | . . . . Authchips . | . . . . Time . | . . . . Total Robot Build Rating . | . . . . Part Schematics Acquired . | . . . . Parts Built . | . . . . Authchips . | . . . . Time . | . . . . Total Part Build Rating . | . . . . Part Studies Acquired . | . . . . Parts Repaired . | . . . . Time . | . . . . Parts Recycled . | . . . . Recycled Matter . | . . . . Retrieved Matter . | . . . . Retrieved Components . | . . . . Parts Scanalyzed . | . . . . Part Schematics Acquired . | . . . . Parts Damaged . | . . . . Bothacking | -11 -10 -10 -9 ------------ Run | Yrd Mat Min Mat Used RIF Installer . | . . . . Robots Hacked . | . . . . Non-combat . | . . . . Combat . | . . . . Robot Hacks Applied . | . . . . Relay Couplers Released . | . . . . Fabnet Peak Effective % . | . . . . Robots Rewired . | . . . . Allies Hacked . | . . . . Hacks Repelled . | . . . . Allies | -11 -10 -10 -9 -------- Run | Yrd Mat Min Mat Total Allies 1 | . . 1 . Largest Group 1 | . . 1 1 Highest-Rated Group 31 | . . 31 31 Highest-Rated Ally 31 | . . 31 31 Total Orders . | . . . . Ally Attacks 17 | . . 1 16 Total Damage 352 | . . 164 188 Kills 4 | . . 3 1 Allies Corrupted . | . . . . Allies Melted . | . . . . Intel | -11 -10 -10 -9 ------- Run | Yrd Mat Min Mat Active Infowar (turns) . | . . . . Robot Analysis Total . | . . . . Derelict Logs Recovered 2 | . . 2 . Drone Launches . | . . . . Drone Recoveries . | . . . . Exploration | -11 -10 -10 -9 ------------- Run | Yrd Mat Min Mat Turns Passed 888 | 227 322 90 249 Spaces Moved 395 | 123 134 42 96 Core 365 | 119 134 42 70 Treads 30 | 4 . . 26 Legs . | . . . . Wheels . | . . . . Hover . | . . . . Flight . | . . . . Fastest Speed 50 | 50 200 200 150 Average Speed 195 | 174 200 202 213 Slowest Speed 250 | 200 200 250 250 Overloaded Moves . | . . . . Propulsion Burnouts . | . . . . Robots Hopped . | . . . . Potential Cave-ins . | . . . . Cave-ins Triggered . | . . . . Exploration Rate (%) 16 | 7 32 17 11 Regions Visited 3 Branch Regions 1 Pre-discovered Areas 1 | . . 1 . Known Exits Taken . | . . . . Unknown Exits Taken 3 | 1 1 1 . Scrap Searched . | . . . . Spaces Dug . | . . . . Terrain Destroyed 97 | . 73 8 16 Melee . | . . . . Projectile . | . . . . AOE 97 | . 73 8 16 Terrain Rammed . | . . . . Walls Destroyed . | . . . . Machines Disabled . | . . . . Actions | -11 -10 -10 -9 --------- Run | Yrd Mat Min Mat Total 475 | 134 168 46 127 Wait 39 | . 20 2 17 Move 392 | 122 133 41 96 Hop . | . . . . Pick Up 2 | . 1 1 . Fast Attach 13 | 8 1 1 3 Attach 1 | . 1 . . Detach 2 | 2 . . . Swap . | . . . . Drop 2 | 2 . . . Fire 22 | . 12 1 9 Melee 2 | . . . 2 Ram . | . . . . Kick . | . . . . Crush . | . . . . Escape Stasis . | . . . . Rewire . | . . . . Trap . | . . . . Miscellaneous . | . . . . Route ------- -11/Scrapyard -10/Materials -10/Mines -9/Materials History --------- Turn | Location | Event 14 | -11/Scrapyard | Discovered new exit (range 16) 228 | -11/Scrapyard | Entered Materials 305 | -10/Materials | Build established: Mutant 532 | -10/Materials | Discovered new exit (range 10) 550 | -10/Materials | Entered Mines 553 | -10/Mines | Received a Mining Laser from a helpful Derelict 577 | -10/Mines | Learned location of Zion (-7) 591 | -10/Mines | Learned 2 Materials zone layouts 599 | -10/Mines | Met a Derelict bent on vengeance 615 | -10/Mines | Discovered new exit (range 9) 640 | -10/Mines | Entered Materials 640 | -9/Materials | Accompanied by 1 ally 640 | -9/Materials | Evolved 2 slots: Power x1, Utility x1 870 | -9/Materials | Core integrity fell below 50% 884 | -9/Materials | Core integrity fell below 20% 889 | -9/Materials | Destroyed by Y-45 Defender with Heavy Assault Rifle Last Messages --------------- G-34 Mercenary suffers critical hit (Smash). Destroyed Ion Engine. [Achievement: Overwhelming] Destroyed Heat Sink. G-34 Mercenary system corrupted by crushing effect. G-34 Mercenary knocked back. G-34 Mercenary system terminally corrupted. [Achievement: Power Corrupts] Aluminum Leg fried. K-01 Serf collects debris. Critical hit (Burn: +37). U-05 Engineer lays Concrete. Y-45 Defender suffers critical hit (Smash). Destroyed Imp. Ion Engine. Y-45 Defender system corrupted by crushing effect. U-05 Engineer builds a Wall. Y-45 Defender system terminally corrupted. Heat Sink fried. Map ----- +----------------------------------------------------+ | | | | | | | | | | | | | ?????????????????????????????????????????????????? | | ?????????????????????????????????????????????????? | | ?????????????????????????????????????????????????? | | ????############????????###??????????????????????? | | ########## ########## ###???????????????????? | | ####### ????????? | | =%= ????????????? | | **% #???????????????????? | | ########## ##### #### %u##??????????????????? | | ???????#### ##???#+#??? [ ##??????????????????? | | ??????????# #??? ?? #??????????????????? | | ??????????# #? ## #???????????????????? | | ??????????#! / ## #???????????????????? | | ??????????#%|%# ## #???????????????????? | | ??????????# ############ #???????????????????? | | ?????????## #??????????# #???????????????????? | | ??????#### ########### #???????????????????? | | ?????? Yg #???????????????????? | | ?????? g #???????????????????? | | ?????? k %=@% #???????????????????? | | ????????## ### ##= #???????????????????? | | ?????????###+###?# %## #???????????????????? | | ?????????????????#!! ! ## #???????????????????? | | ?????????????????#!!//!!## #???????????????????? | | ?????????????????######### ???????????????????? | | ?????????????????????????? ??????????????????? | | ?????????????????????????? ?????????????????? | | ??????????????????????????#######????????????????? | | ?????????????????????????????????????????????????? | | ?????????????????????????????????????????????????? | | ?????????????????????????????????????????????????? | | ?????????????????????????????????????????????????? | | ?????????????????????????????????????????????????? | | ?????????????????????????????????????????????????? | | ?????????????????????????????????????????????????? | | ?????????????????????????????????????????????????? | | ?????????????????????????????????????????????????? | | ?????????????????????????????????????????????????? | | ?????????????????????????????????????????????????? | | ?????????????????????????????????????????????????? | | ?????????????????????????????????????????????????? | | ?????????????????????????????????????????????????? | | ?????????????????????????????????????????????????? | | ?????????????????????????????????????????????????? | +----------------------------------------------------+ Best States ------------- Heat Dissipation 42 Energy Generation 10 Energy Capacity 125 Matter Stores 300 Matter Capacity 300 Sight Range 16 Terrain Scan Density 10 Evasion (%) 40 Recoil Reduction 2 Defensive Hacking 10 Item Schematics ----------------- None Robot Schematics ------------------ None Fabricated ------------ Nothing Repaired ---------- Nothing Studied --------- None Alien Tech Used ----------------- None Achievements -------------- Loot Pinata Overwhelming Physics Hates This One Trick Power Corrupts Challenges ------------ None Game ------ Seed GrenadeExperimentalTrident Manual? 0 Play Time 00:16:01 Cumulative 2.7 hours Start 2026.01.24 @ 17:55:51 End 2026.01.24 @ 18:14:57 Sessions 1 Manual Loads 0 Difficulty Rogue Special Mode None Game No. 4 Rogue 4 Adventurer 0 Explorer 0 Win Type - Total 0 Types 0/0/0/0/0/0/0/0/0/0 Lore% 2 Gallery% 3 Achievement% 5 Wizard Run 0 Options --------- Layout 1 ASCII 0 Keyboard 1 Movement Numpad Keybinds 0 Fullscreen 2 Font 24/Smallcaps Map View 25x17 Zoom Use 86% Tactical HUD 0 Map Filters NONE Filters NONE Steam 1 RUN: 3562d2a9-77ce-406c-8710-ab2b6d9f5cc7